bitfinex/quotes_BTCUSD_20241120
["timestamp","ask_amount","ask_price","bid_price","bid_amount"]
[1732107765925,0.58786623,93700.0,93699.0,0.67285363]
[1732107766147,0.023,93732.0,93713.0,0.064024]
[1732107766366,0.22941424,93729.0,93699.0,0.2017102]
[1732107766580,0.05177649,93731.0,93702.0,0.01]
[1732107766788,0.03186246,93728.0,93727.0,0.064015]
[1732107767011,0.03186246,93728.0,93715.0,0.064023]
[1732107767012,0.06509243,93728.0,93715.0,0.064023]
[1732107767242,0.05177649,93727.0,93725.0,0.064016]
[1732107767479,0.05177649,93726.0,93721.0,0.064019]
[1732107767718,0.05177649,93725.0,93700.0,0.1]
[1732107767983,0.07477649,93724.0,93702.0,0.1]
[1732107768220,0.023,93722.0,93687.0,0.064042]
[1732107768456,0.023,93712.0,93703.0,0.064031]
[1732107768684,0.023,93712.0,93687.0,0.064042]
[1732107768685,0.023,93710.0,93687.0,0.064042]
[1732107768909,0.023,93710.0,93709.0,0.064028]
[1732107769134,0.20738748,93710.0,93709.0,0.064028]
[1732107769588,0.20738529,93710.0,93709.0,0.064028]
[1732107770081,0.20738529,93710.0,93708.0,0.064028]
[1732107770308,0.05178529,93709.0,93708.0,0.064028]
[1732107770538,0.07478529,93709.0,93708.0,0.064028]
[1732107771000,0.05178529,93709.0,93708.0,0.064028]
[1732107771689,0.05178529,93709.0,93705.0,0.06403]
[1732107771913,0.05178529,93708.0,93704.0,0.064031]
[1732107772133,0.05178529,93707.0,93706.0,0.064029]
[1732107773212,0.01991742,93707.0,93706.0,0.064029]
[1732107775373,0.13051742,93710.0,93709.0,0.064028]
[1732107775608,0.13051742,93710.0,93699.0,0.2017102]
[1732107775826,0.023,93709.0,93704.0,0.06403]
[1732107776061,0.023,93709.0,93705.0,0.06403]
[1732107776292,0.023,93709.0,93707.0,0.064029]
[1732107776521,0.023,93709.0,93708.0,0.064028]
[1732107776749,0.023,93709.0,93699.0,0.2017102]
[1732107776750,0.023,93709.0,93704.0,0.06403]
[1732107777010,0.023,93709.0,93699.0,0.2657442]
[1732107777011,0.0238551,93709.0,93699.0,0.2017102]
[1732107777244,0.212323,93700.0,93699.0,0.2017102]
[1732107777481,0.24458918,93700.0,93699.0,0.2017102]
[1732107777712,0.35131218,93700.0,93699.0,0.0017102]
[1732107778220,0.24458918,93700.0,93699.0,0.0017102]
[1732107778437,0.39981218,93700.0,93699.0,0.0017102]
[1732107778663,0.41313273,93700.0,93699.0,0.0017102]
[1732107778877,0.23683812,93700.0,93699.0,0.0017102]
[1732107779298,0.21344,93703.0,93699.0,0.0017102]
[1732107779552,0.21344,93703.0,93678.0,0.064049]
[1732107779553,0.10711512,93700.0,93678.0,0.064049]
[1732107779769,0.10711512,93699.0,93677.0,0.01]
[1732107780013,0.10711512,93699.0,93666.0,0.0017108]
[1732107780014,0.12229912,93687.0,93668.0,0.01]
[1732107780238,0.10711512,93686.0,93666.0,0.0017108]
[1732107780669,0.106761,93667.0,93666.0,0.0017108]
[1732107780887,0.10711512,93667.0,93666.0,0.0017108]
[1732107781110,0.213495,93679.0,93666.0,0.0017108]
[1732107781332,0.023,93676.0,93666.0,0.0017108]
[1732107781548,0.106759,93669.0,93666.0,0.0017108]
[1732107781766,0.213506,93674.0,93666.0,0.0017108]
[1732107781949,0.106755,93672.0,93666.0,0.0017108]
[1732107782191,0.106756,93671.0,93666.0,0.0017108]
[1732107782421,0.106757,93670.0,93666.0,0.0017108]
[1732107782656,0.129748,93679.0,93667.0,0.064056]
[1732107782869,0.213501,93676.0,93666.0,0.0017108]
[1732107783082,0.13011512,93675.0,93666.0,0.0017108]
[1732107783327,0.106761,93667.0,93666.0,0.0017108]
[1732107783553,0.023,93667.0,93666.0,0.0017108]
[1732107783993,0.213513,93671.0,93666.0,0.0017108]
[1732107783994,0.023,93670.0,93666.0,0.0017108]
[1732107784209,0.023,93668.0,93666.0,0.0017108]
[1732107784433,0.10711512,93669.0,93666.0,0.0017108]
[1732107784434,0.21387612,93667.0,93666.0,0.0017108]
[1732107784666,0.23687612,93667.0,93666.0,0.0017108]
[1732107785419,0.36367612,93667.0,93666.0,0.0017108]
[1732107786339,0.46367612,93667.0,93666.0,0.0017108]
[1732107786559,0.46467612,93667.0,93666.0,0.0017108]
[1732107786776,0.46367612,93667.0,93666.0,0.0017108]
[1732107787229,0.50733652,93667.0,93666.0,0.0017108]
[1732107787466,0.52715129,93667.0,93666.0,0.0017108]
[1732107787681,0.52915129,93667.0,93666.0,0.0017108]
[1732107787963,0.52915129,93667.0,93637.0,0.0017114]
[1732107787964,0.12229912,93643.0,93637.0,0.0017114]
[1732107788196,0.129794,93638.0,93637.0,0.0017114]
[1732107788337,0.23690912,93638.0,93637.0,0.0017114]
[1732107788763,0.33690912,93638.0,93637.0,0.0017114]
[1732107789002,0.106814,93621.0,93611.0,0.0004]
[1732107789228,0.1,93637.0,93611.0,0.0004]
[1732107789229,0.15396073,93620.0,93611.0,0.0004]
[1732107789448,0.213634,93618.0,93611.0,0.0004]
[1732107789671,0.05147638,93617.0,93611.0,0.0004]
[1732107789892,0.05147638,93616.0,93611.0,0.0004]
[1732107790106,0.01332785,93629.0,93611.0,0.0004]
[1732107790336,0.074388,93628.0,93611.0,0.0004]
[1732107790558,0.023,93628.0,93615.0,0.01]
[1732107790784,0.023,93628.0,93627.0,0.074764]
[1732107791020,0.01333098,93642.0,93631.0,0.074761]
[1732107791252,0.213565,93649.0,93631.0,0.074761]
[1732107791253,0.22689312,93649.0,93631.0,0.074761]
[1732107791478,0.22689312,93649.0,93625.0,0.074765]
[1732107791479,0.01333012,93649.0,93639.0,0.074754]
[1732107791694,0.106786,93645.0,93632.0,0.01]
[1732107791921,0.01333012,93651.0,93640.0,0.074754]
[1732107792151,0.0823,93653.0,93633.0,0.074759]
[1732107792385,0.0823,93653.0,93634.0,0.074759]
[1732107792386,0.106778,93652.0,93634.0,0.074759]
[1732107792592,0.106778,93652.0,93632.0,0.01]
[1732107792593,0.10678,93651.0,93639.0,0.074754]
[1732107792803,0.106781,93650.0,93638.0,0.074755]
[1732107793033,0.023,93649.0,93638.0,0.074755]
[1732107793687,0.01333012,93659.0,93626.0,0.18188012]
[1732107793688,0.023,93658.0,93640.0,0.01]
[1732107793908,0.023,93658.0,93626.0,0.16351512]
[1732107793909,0.023,93658.0,93648.0,0.074747]
[1732107794148,0.19919912,93664.0,93648.0,0.074747]
[1732107794358,0.106769,93660.0,93648.0,0.074747]
[1732107794624,0.213533,93662.0,93648.0,0.074747]
[1732107794625,0.106767,93662.0,93648.0,0.074747]
[1732107794847,0.01332733,93661.0,93647.0,0.01]
[1732107795105,0.106778,93652.0,93640.0,0.074753]
[1732107795349,0.12229912,93657.0,93636.0,0.01]
[1732107795583,0.106779,93652.0,93639.0,0.074754]
[1732107795829,0.01332792,93651.0,93637.0,0.074756]
[1732107796044,0.129778,93652.0,93640.0,0.074753]
[1732107796263,0.01332792,93651.0,93640.0,0.074753]
[1732107796488,0.01332792,93650.0,93641.0,0.074753]
[1732107796725,0.106779,93651.0,93641.0,0.074753]
[1732107796972,0.106779,93651.0,93640.0,0.074753]
[1732107796973,0.01332792,93650.0,93642.0,0.074752]
[1732107797213,0.023,93655.0,93641.0,0.01]
[1732107797462,0.25750117,93668.0,93653.0,0.074743]
[1732107797463,0.01332719,93654.0,93653.0,0.074743]
[1732107798135,0.1,93666.0,93649.0,0.074746]
[1732107798365,0.0133268,93665.0,93651.0,0.074745]
[1732107798577,0.1,93668.0,93641.0,0.10711512]
[1732107798578,0.213531,93663.0,93646.0,0.074749]
[1732107798853,0.213555,93653.0,93638.0,0.074755]
[1732107799079,0.106781,93649.0,93638.0,0.074755]
[1732107799295,0.023,93651.0,93646.0,0.01]
[1732107799523,0.0133268,93650.0,93649.0,0.074747]
[1732107800429,0.04497596,93650.0,93649.0,0.167647]
[1732107800648,0.04497306,93650.0,93649.0,0.27476212]
[1732107801082,0.01332604,93650.0,93649.0,0.27476212]
[1732107801304,0.03164702,93669.0,93667.0,0.074732]
[1732107801514,0.106747,93680.0,93659.0,0.01]
[1732107801755,0.213488,93682.0,93665.0,0.074734]
[1732107801756,0.031659,93668.0,93665.0,0.074734]
[1732107801967,0.04498411,93667.0,93666.0,0.074733]
[1732107802416,0.06477915,93667.0,93659.0,0.084738]
[1732107802670,0.06477915,93667.0,93666.0,0.074733]
[1732107802901,0.06479146,93667.0,93666.0,0.074733]
[1732107803128,0.06479146,93667.0,93663.0,0.074735]
[1732107803361,0.06479146,93666.0,93664.0,0.074735]
[1732107803602,0.06479146,93665.0,93664.0,0.074735]
[1732107804064,0.023,93676.0,93665.0,0.074734]
[1732107804313,0.03169133,93667.0,93665.0,0.074734]
[1732107804552,0.0133252,93665.0,93654.0,0.01]
[1732107804772,0.0133252,93665.0,93628.0,0.0117116]
[1732107804773,0.06484857,93666.0,93650.0,0.074745]
[1732107805017,0.03171272,93659.0,93652.0,0.074744]
[1732107805248,0.03173387,93654.0,93653.0,0.074743]
[1732107805480,0.03173777,93660.0,93654.0,0.074743]
[1732107805710,0.03173777,93660.0,93647.0,0.01]
[1732107805943,0.10678,93651.0,93640.0,0.074754]
[1732107806194,0.213543,93658.0,93641.0,0.084753]
[1732107806195,0.106778,93652.0,93641.0,0.084753]
[1732107806431,0.106777,93653.0,93642.0,0.074752]
[1732107806665,0.03173953,93651.0,93642.0,0.074752]
[1732107806906,0.03173953,93654.0,93641.0,0.01]
[1732107807126,0.03173953,93653.0,93645.0,0.07475]
[1732107807354,0.023,93659.0,93644.0,0.07475]
[1732107807625,0.023,93659.0,93642.0,0.074752]
[1732107807626,0.03178918,93650.0,93642.0,0.074752]
[1732107807873,0.03178918,93651.0,93650.0,0.074746]
[1732107808128,0.106774,93656.0,93648.0,0.074747]
[1732107808358,0.106776,93654.0,93643.0,0.074751]
[1732107808630,0.03181638,93648.0,93643.0,0.074751]
[1732107809125,0.03181638,93648.0,93639.0,0.074754]
[1732107809126,0.03181638,93646.0,93639.0,0.074754]
[1732107809128,0.03181638,93644.0,93632.0,0.0877]
[1732107809342,0.21354,93659.0,93632.0,0.01]
[1732107809568,0.14529912,93660.0,93632.0,0.01]
[1732107809569,0.03184064,93636.0,93632.0,0.01]
[1732107809799,0.03184064,93635.0,93634.0,0.074759]
[1732107810030,0.213568,93647.0,93634.0,0.074759]
[1732107810517,0.213568,93647.0,93635.0,0.074758]
[1732107810518,0.106786,93645.0,93635.0,0.074758]
[1732107810802,0.213561,93650.0,93634.0,0.074759]
[1732107811054,0.213561,93650.0,93632.0,0.01]
[1732107811055,0.106784,93647.0,93637.0,0.074756]
[1732107811284,0.106784,93647.0,93638.0,0.074755]
[1732107811520,0.106784,93647.0,93637.0,0.074756]
[1732107811750,0.213533,93663.0,93632.0,0.01]
[1732107812017,0.023,93654.0,93651.0,0.074744]
[1732107812269,0.023,93654.0,93640.0,0.01]
[1732107812270,0.213542,93659.0,93646.0,0.074749]
[1732107812496,0.106773,93657.0,93646.0,0.074749]
[1732107812752,0.106764,93664.0,93640.0,0.01]
[1732107813007,0.129762,93666.0,93654.0,0.074743]
[1732107813265,0.05941772,93667.0,93655.0,0.074742]
[1732107813266,0.023,93664.0,93655.0,0.074742]
[1732107813494,0.023,93666.0,93658.0,0.074739]
[1732107813714,0.023,93666.0,93656.0,0.074741]
[1732107813942,0.023,93666.0,93654.0,0.074743]
[1732107814168,0.023,93666.0,93652.0,0.074744]
[1732107814402,0.129764,93664.0,93652.0,0.074744]
[1732107814685,0.023,93666.0,93654.0,0.074743]
[1732107814686,0.03184866,93655.0,93654.0,0.074743]
[1732107815136,0.04517537,93655.0,93652.0,0.074744]
[1732107815435,0.04517865,93654.0,93653.0,0.001711]
[1732107816243,0.04517865,93654.0,93653.0,0.076455]
[1732107816465,0.04517447,93654.0,93653.0,0.076455]
[1732107817408,0.06507988,93654.0,93653.0,0.076455]
[1732107817661,0.06507988,93654.0,93652.0,0.074744]
[1732107817899,0.06507988,93653.0,93652.0,0.074744]
[1732107818628,0.06507988,93653.0,93645.0,0.078]
[1732107818865,0.06507988,93652.0,93644.0,0.08475]
[1732107819102,0.06507988,93651.0,93646.0,0.074749]
[1732107819360,0.106783,93648.0,93637.0,0.074756]
[1732107819597,0.17186388,93647.0,93637.0,0.074756]
[1732107819851,0.106787,93644.0,93634.0,0.074758]
[1732107820089,0.09692855,93643.0,93632.0,0.07476]
[1732107820317,0.03184867,93641.0,93633.0,0.074759]
[1732107820616,0.01994014,93640.0,93630.0,0.074761]
[1732107820820,0.12229912,93643.0,93628.0,0.0964746]
[1732107821074,0.22908812,93643.0,93631.0,0.07476]
[1732107821311,0.22908812,93643.0,93630.0,0.074761]
[1732107821312,0.12229912,93643.0,93635.0,0.074758]
[1732107821560,0.106787,93644.0,93633.0,0.074759]
[1732107821789,0.106787,93644.0,93635.0,0.074758]
[1732107822012,0.213571,93646.0,93628.0,0.0964746]
[1732107822013,0.106786,93646.0,93634.0,0.074758]
[1732107822239,0.023,93649.0,93640.0,0.149507]
[1732107822458,0.023,93649.0,93640.0,0.074753]
[1732107822700,0.023,93649.0,93628.0,0.0217116]
[1732107822701,0.106783,93648.0,93639.0,0.074754]
[1732107822936,0.023,93656.0,93633.0,0.074759]
[1732107823290,0.023,93656.0,93631.0,0.01]
[1732107823546,0.023,93653.0,93639.0,0.074755]
[1732107823795,0.023,93653.0,93633.0,0.074759]
[1732107824027,0.106782,93649.0,93639.0,0.074754]
[1732107824249,0.106782,93648.0,93639.0,0.074754]
[1732107824587,0.106777,93653.0,93631.0,0.01]
[1732107824721,0.106779,93651.0,93643.0,0.074751]
[1732107824962,0.023,93650.0,93645.0,0.074749]
[1732107825179,0.17708989,93676.0,93643.0,0.01]
[1732107825431,0.12229912,93682.0,93662.0,0.074736]
[1732107825432,0.213504,93675.0,93662.0,0.074736]
[1732107825647,0.213504,93675.0,93648.0,0.01]
[1732107825648,0.0319043,93673.0,93648.0,0.01]
[1732107825894,0.106758,93670.0,93660.0,0.074737]
[1732107826167,0.0319043,93673.0,93662.0,0.074736]
[1732107826168,0.03190348,93673.0,93662.0,0.074736]
[1732107826384,0.24540748,93675.0,93662.0,0.074736]
[1732107826600,0.106758,93670.0,93662.0,0.074736]
[1732107826871,0.213526,93666.0,93644.0,0.074751]
[1732107827134,0.213526,93666.0,93637.0,0.01]
[1732107827135,0.12229912,93661.0,93637.0,0.01]
[1732107827389,0.12229912,93654.0,93632.0,0.0765]
[1732107827608,0.106781,93650.0,93641.0,0.074753]
[1732107827860,0.106781,93649.0,93641.0,0.074753]
[1732107828079,0.106781,93649.0,93639.0,0.074755]
[1732107828080,0.106782,93649.0,93639.0,0.074755]
[1732107828306,0.213561,93650.0,93635.0,0.074758]
[1732107828531,0.213561,93650.0,93628.0,0.0117116]
[1732107828532,0.213561,93650.0,93632.0,0.07476]
[1732107829519,0.023,93644.0,93636.0,0.074756]
[1732107829997,0.023,93644.0,93643.0,0.0008559]
[1732107830221,0.129787,93644.0,93643.0,0.0008559]
[1732107830434,0.16169053,93644.0,93643.0,0.0008559]
[1732107830654,0.17501955,93644.0,93643.0,0.0008559]
[1732107831963,0.06823255,93644.0,93643.0,0.0008559]
[1732107832631,0.08817784,93644.0,93643.0,0.0008559]
[1732107833077,0.06517784,93644.0,93643.0,0.0756069]
[1732107833292,0.06517784,93644.0,93643.0,0.0008559]
[1732107833293,0.05184882,93644.0,93643.0,0.0008559]
[1732107833505,0.17196402,93644.0,93643.0,0.0008559]
[1732107833716,0.17198315,93644.0,93643.0,0.0008559]
[1732107834164,0.29428227,93644.0,93643.0,0.0008559]
[1732107834590,0.31728227,93644.0,93643.0,0.0008559]
[1732107834829,0.19498315,93644.0,93643.0,0.0008559]
[1732107835080,0.08819615,93644.0,93643.0,0.0008559]
[1732107835306,0.12012356,93644.0,93643.0,0.0008559]
[1732107835544,0.04319615,93644.0,93643.0,0.0008559]
[1732107836013,0.02019615,93644.0,93643.0,0.0008559]
[1732107836239,0.023,93654.0,93647.0,0.074748]
[1732107836473,0.023,93658.0,93643.0,0.0811559]
[1732107836702,0.023,93657.0,93643.0,0.1559069]
[1732107836935,0.023,93657.0,93644.0,0.074751]
[1732107837186,0.023,93657.0,93643.0,0.0811559]
[1732107837187,0.023,93658.0,93643.0,0.0008559]
[1732107837492,0.106787,93644.0,93643.0,0.0008559]
[1732107837695,0.21357,93646.0,93643.0,0.0008559]
[1732107837912,0.106787,93644.0,93643.0,0.0008559]
[1732107838124,0.023,93650.0,93643.0,0.0008559]
[1732107838343,0.106785,93646.0,93643.0,0.0008559]
[1732107838573,0.12229912,93651.0,93643.0,0.0008559]
[1732107838790,0.106787,93644.0,93643.0,0.0008559]
[1732107839287,0.213561,93650.0,93647.0,0.074748]
[1732107839288,0.023,93650.0,93647.0,0.074748]
[1732107839526,0.023,93650.0,93644.0,0.07475]
[1732107839760,0.129779,93651.0,93643.0,0.0756069]
[1732107839988,0.023,93653.0,93643.0,0.0008559]
[1732107840247,0.023,93649.0,93643.0,0.0008559]
[1732107840661,0.129782,93649.0,93643.0,0.0008559]
[1732107841079,0.023,93649.0,93645.0,0.07475]
[1732107841305,0.023,93650.0,93643.0,0.0756069]
[1732107841537,0.106784,93647.0,93643.0,0.0008559]
[1732107841751,0.106787,93644.0,93643.0,0.0008559]
[1732107842862,0.13870256,93644.0,93643.0,0.0008559]
[1732107843083,0.16170256,93644.0,93643.0,0.0008559]
[1732107843318,0.129787,93644.0,93643.0,0.0008559]
[1732107843531,0.29460272,93644.0,93643.0,0.0008559]
[1732107843823,0.106804,93629.0,93628.0,0.0017116]
[1732107844042,0.24243322,93629.0,93628.0,0.0017116]
[1732107844467,0.26543322,93629.0,93628.0,0.0017116]
[1732107845395,0.29734569,93629.0,93628.0,0.0017116]
[1732107845909,0.50446081,93629.0,93628.0,0.0017116]
[1732107846147,0.22912212,93612.0,93611.0,0.0004]
[1732107846422,0.25212212,93612.0,93611.0,0.0004]
[1732107846653,0.25212212,93612.0,93589.0,0.0008563]
[1732107846654,0.20683,93606.0,93589.0,0.0008563]
[1732107846888,0.38218769,93606.0,93589.0,0.0008563]
[1732107847530,0.40209871,93606.0,93589.0,0.0008563]
[1732107848012,0.08815359,93606.0,93589.0,0.0756503]
[1732107848233,0.08815359,93606.0,93589.0,0.0008563]
[1732107848490,0.06509882,93606.0,93603.0,0.074783]
[1732107848726,0.06509882,93606.0,93605.0,0.076492]
[1732107848962,0.05176439,93606.0,93605.0,0.086492]
[1732107849196,0.05176439,93606.0,93605.0,0.20360712]
[1732107849458,0.01990938,93606.0,93605.0,0.20360712]
[1732107850368,0.213604,93632.0,93612.0,0.01]
[1732107850600,0.106807,93627.0,93619.0,0.07477]
[1732107850826,0.03183162,93626.0,93617.0,0.074772]
[1732107851052,0.023,93636.0,93624.0,0.074766]
[1732107851331,0.03183174,93635.0,93624.0,0.074766]
[1732107851524,0.03183174,93635.0,93606.0,0.11711512]
[1732107851525,0.03183174,93635.0,93634.0,0.074759]
[1732107851781,0.03183174,93635.0,93620.0,0.07477]
[1732107851782,0.023,93641.0,93620.0,0.07477]
[1732107852012,0.03182784,93635.0,93627.0,0.074763]
[1732107852229,0.213585,93640.0,93609.0,0.074778]
[1732107852230,0.213613,93627.0,93609.0,0.074778]
[1732107852446,0.213618,93625.0,93615.0,0.074774]
[1732107852692,0.213618,93625.0,93599.0,0.010856]
[1732107852693,0.03182784,93624.0,93611.0,0.074777]
[1732107852916,0.03182784,93623.0,93621.0,0.074769]
[1732107853358,0.213604,93631.0,93618.0,0.074771]
[1732107853359,0.03182784,93622.0,93618.0,0.074771]
[1732107853585,0.03182784,93621.0,93619.0,0.07477]
[1732107853802,0.03182784,93620.0,93615.0,0.074773]
[1732107854028,0.03182784,93619.0,93616.0,0.074773]
[1732107854236,0.213613,93628.0,93618.0,0.074771]
[1732107854237,0.10681,93624.0,93618.0,0.074771]
[1732107854444,0.03182512,93618.0,93610.0,0.074778]
[1732107854653,0.213613,93628.0,93619.0,0.07477]
[1732107854654,0.03182512,93623.0,93619.0,0.07477]
[1732107854881,0.106809,93625.0,93619.0,0.07477]
[1732107855091,0.14324074,93651.0,93611.0,0.074777]
[1732107855092,0.023,93620.0,93611.0,0.074777]
[1732107855312,0.13864115,93619.0,93607.0,0.07478]
[1732107855542,0.13864215,93618.0,93612.0,0.074776]
[1732107855771,0.03182515,93617.0,93612.0,0.074776]
[1732107856050,0.03182515,93617.0,93605.0,0.00171]
[1732107856051,0.213638,93616.0,93605.0,0.00171]
[1732107856306,0.10683,93606.0,93605.0,0.00171]
[1732107856606,0.12983,93606.0,93605.0,0.00171]
[1732107856816,0.16165515,93606.0,93605.0,0.00171]
[1732107858318,0.12983,93606.0,93605.0,0.00171]
[1732107860808,0.38211375,93606.0,93605.0,0.00171]
[1732107861246,0.38211375,93606.0,93599.0,0.000856]
[1732107861247,0.106837,93600.0,93599.0,0.000856]
[1732107861465,0.23695212,93600.0,93599.0,0.000856]
[1732107861681,0.106846,93592.0,93591.0,0.0004]
[1732107861907,0.44124995,93592.0,93591.0,0.0004]
[1732107862127,0.46424995,93592.0,93591.0,0.0004]
[1732107862342,0.48413648,93592.0,93591.0,0.0004]
[1732107862549,0.30200831,93592.0,93591.0,0.0004]
[1732107864896,0.30196021,93592.0,93591.0,0.0004]
[1732107865383,0.19511421,93592.0,93591.0,0.0004]
[1732107865619,0.19484509,93592.0,93591.0,0.0004]
[1732107865824,0.30196021,93592.0,93591.0,0.0004]
[1732107866282,0.23696112,93592.0,93591.0,0.0004]
[1732107866562,0.48408133,93592.0,93591.0,0.0004]
[1732107867763,0.58408133,93592.0,93591.0,0.0004]
[1732107867994,0.58408641,93592.0,93591.0,0.0004]
[1732107870101,0.58408794,93592.0,93591.0,0.0004]
[1732107870570,0.40195977,93592.0,93591.0,0.0004]
[1732107870813,0.06499865,93592.0,93591.0,0.0004]
[1732107871019,0.06499865,93592.0,93591.0,0.0012562]
[1732107871682,0.06499865,93592.0,93591.0,0.0760492]
[1732107871891,0.0436172,93609.0,93592.0,0.074792]
[1732107872120,0.10711512,93608.0,93591.0,0.0012562]
[1732107872352,0.10711512,93608.0,93601.0,0.074785]
[1732107872598,0.10711512,93608.0,93597.0,0.074788]
[1732107872812,0.10711512,93608.0,93598.0,0.074787]
[1732107872813,0.06501793,93607.0,93598.0,0.074787]
[1732107873023,0.13011512,93606.0,93598.0,0.074787]
[1732107873253,0.023,93604.0,93595.0,0.074789]
[1732107873495,0.023,93604.0,93591.0,0.0760482]
[1732107873496,0.01987772,93603.0,93591.0,0.0012562]
[1732107873720,0.129836,93602.0,93593.0,0.074791]
[1732107873972,0.01987772,93601.0,93591.0,0.0012562]
[1732107874205,0.21368,93598.0,93591.0,0.0012562]
[1732107874455,0.04287772,93597.0,93591.0,0.0012562]
[1732107874688,0.01987772,93596.0,93591.0,0.0012562]
[1732107874900,0.129841,93597.0,93591.0,0.0012562]
[1732107874901,0.04287772,93595.0,93591.0,0.0012562]
[1732107875126,0.01987772,93594.0,93591.0,0.0012562]
[1732107875343,0.106846,93592.0,93591.0,0.0012562]
[1732107875641,0.14974451,93592.0,93591.0,0.0012562]
[1732107875854,0.14974451,93592.0,93589.0,0.0008563]
[1732107875855,0.129849,93590.0,93589.0,0.0008563]
[1732107876084,0.23696412,93590.0,93589.0,0.0008563]
[1732107876302,0.15001363,93590.0,93576.0,0.01]
[1732107876528,0.18212817,93593.0,93576.0,0.01]
[1732107876529,0.106857,93583.0,93576.0,0.14961]
[1732107876752,0.01989851,93582.0,93577.0,0.074804]
[1732107877012,0.04289851,93582.0,93581.0,0.074801]
[1732107877252,0.09526912,93617.0,93597.0,0.074788]
[1732107877480,0.106835,93603.0,93598.0,0.074787]
[1732107877698,0.04289733,93602.0,93599.0,0.074787]
[1732107877910,0.01989733,93601.0,93599.0,0.074787]
[1732107878125,0.04289733,93600.0,93598.0,0.074787]
[1732107878340,0.01989733,93599.0,93586.0,0.074797]
[1732107878575,0.023,93598.0,93597.0,0.074788]
[1732107878791,0.04289733,93598.0,93585.0,0.01]
[1732107879003,0.01989733,93597.0,93585.0,0.01]
[1732107879226,0.01989733,93596.0,93594.0,0.07479]
[1732107879442,0.01989733,93595.0,93592.0,0.074792]
[1732107879668,0.01989733,93595.0,93594.0,0.074791]
[1732107879876,0.129837,93600.0,93594.0,0.07479]
[1732107880058,0.01990115,93599.0,93594.0,0.074791]
[1732107880302,0.04290115,93598.0,93594.0,0.074791]
[1732107880508,0.10474015,93599.0,93592.0,0.074792]
[1732107880729,0.106835,93603.0,93598.0,0.074787]
[1732107880939,0.106835,93603.0,93586.0,0.01]
[1732107880940,0.213661,93606.0,93597.0,0.074788]
[1732107881153,0.106839,93599.0,93595.0,0.07479]
[1732107881386,0.5399,93616.0,93592.0,0.074792]
[1732107881387,0.213668,93603.0,93592.0,0.074792]
[1732107881598,0.106838,93600.0,93595.0,0.07479]
[1732107882051,0.213666,93604.0,93590.0,0.074794]
[1732107882276,0.32078112,93604.0,93593.0,0.074791]
[1732107882487,0.32078112,93604.0,93594.0,0.07479]
[1732107882708,0.106837,93600.0,93594.0,0.07479]
[1732107883186,0.10711512,93604.0,93594.0,0.07479]
[1732107883407,0.106836,93601.0,93596.0,0.074789]
[1732107883619,0.106837,93600.0,93594.0,0.07479]
[1732107883823,0.106837,93600.0,93594.0,0.14958]
[1732107884447,0.106839,93599.0,93594.0,0.07479]
[1732107884669,0.106846,93592.0,93591.0,0.0008565]
[1732107884844,0.21396112,93592.0,93591.0,0.0008565]
[1732107885097,0.23696112,93592.0,93591.0,0.0008565]
[1732107888357,0.33696112,93592.0,93591.0,0.0008565]
[1732107888640,0.77001512,93592.0,93574.0,0.0017106]
[1732107888868,0.106866,93575.0,93574.0,0.0017106]
[1732107889115,0.21398112,93575.0,93574.0,0.0017106]
[1732107891423,0.10711512,93575.0,93562.0,0.074816]
[1732107891634,0.213736,93573.0,93562.0,0.074816]
[1732107891845,0.213736,93573.0,93566.0,0.074813]
[1732107892055,0.10711512,93575.0,93534.0,0.1008559]
[1732107892258,0.213734,93574.0,93564.0,0.074814]
[1732107892482,0.106873,93569.0,93564.0,0.074814]
[1732107892698,0.01995092,93568.0,93564.0,0.074814]
[1732107892918,0.10711512,93575.0,93567.0,0.074812]
[1732107893162,0.01995091,93574.0,93571.0,0.074808]
[1732107893378,0.01995091,93573.0,93571.0,0.074809]
[1732107893601,0.213706,93587.0,93571.0,0.074809]
[1732107893814,0.01994802,93586.0,93583.0,0.074799]
[1732107894028,0.01994802,93586.0,93584.0,0.074798]
[1732107894243,0.01994802,93586.0,93583.0,0.074799]
[1732107894244,0.0435175,93588.0,93583.0,0.074799]
[1732107894485,0.0435175,93588.0,93585.0,0.074797]
[1732107894702,0.01994763,93587.0,93586.0,0.074797]
[1732107894909,0.01994763,93587.0,93585.0,0.074797]
[1732107895136,0.01994763,93586.0,93585.0,0.074797]
[1732107895378,0.18864663,93590.0,93582.0,0.0748]
[1732107895613,0.106853,93587.0,93582.0,0.0748]
[1732107895848,0.106853,93587.0,93582.0,0.1496]
[1732107896066,0.213702,93589.0,93579.0,0.074802]
[1732107896310,0.213702,93589.0,93575.0,0.01]
[1732107896311,0.03191509,93582.0,93575.0,0.01]
[1732107896553,0.03191509,93579.0,93568.0,0.01]
[1732107896763,0.10687,93571.0,93568.0,0.01]
[1732107897205,0.106869,93572.0,93569.0,0.01]
[1732107897424,0.21373,93576.0,93569.0,0.01]
[1732107897634,0.106869,93573.0,93569.0,0.01]
[1732107898062,0.10687,93572.0,93566.0,0.074813]
[1732107898296,0.03191762,93567.0,93566.0,0.074813]
[1732107898501,0.03191762,93568.0,93564.0,0.01]
[1732107898712,0.03191762,93568.0,93567.0,0.074812]
[1732107898918,0.03191762,93570.0,93567.0,0.074812]
[1732107899135,0.03191762,93570.0,93565.0,0.01]
[1732107899348,0.03191762,93571.0,93567.0,0.074812]
[1732107899973,0.13878762,93572.0,93567.0,0.074812]
[1732107900189,0.03191762,93572.0,93562.0,0.0922]
[1732107900408,0.0319128,93578.0,93577.0,0.074804]
[1732107900628,0.14494247,93599.0,93587.0,0.074796]
[1732107900629,0.023,93597.0,93587.0,0.074796]
[1732107900900,0.31087624,93599.0,93587.0,0.074796]
[1732107900901,0.106844,93594.0,93587.0,0.074796]
[1732107901117,0.32080012,93596.0,93587.0,0.074796]
[1732107901118,0.03190916,93591.0,93587.0,0.074796]